bitfinex-derivatives/quotes_SOLF0:USTF0_20260222
["timestamp","ask_amount","ask_price","bid_price","bid_amount"]
[1771728084720,1.09910026,84.889,84.827,302.41258934]
[1771728084721,1.09910026,84.884,84.835,3.88186594]
[1771728086126,10.6056,84.894,84.835,3.88186594]
[1771728086320,1.08959303,84.91,84.835,3.88186594]
[1771728086519,1.08959303,84.908,84.835,3.88186594]
[1771728087227,1.10692645,84.897,84.839,3.88186594]
[1771728088626,1.10692645,84.895,84.839,3.88186594]
[1771728089717,0.98859783,84.892,84.839,3.88186594]
[1771728090122,0.98859783,84.903,84.839,3.88186594]
[1771728090317,0.98859783,84.901,84.839,3.88186594]
[1771728091120,0.99483397,84.899,84.841,3.88186594]
[1771728091320,0.99483397,84.897,84.841,3.88186594]
[1771728091921,0.99483397,84.896,84.841,3.88186594]
[1771728092631,0.99483397,84.894,84.841,3.88186594]
[1771728093626,0.97740748,84.908,84.841,3.88186594]
[1771728094222,0.97740748,84.923,84.859,3.88186594]
[1771728094531,9.18695816,84.936,84.859,3.88186594]
[1771728094532,0.97740748,84.953,84.859,3.88186594]
[1771728094723,0.97740748,84.951,84.859,3.88186594]
[1771728094922,0.99205915,84.949,84.859,3.88186594]
[1771728095124,0.99205915,84.927,84.861,3.88186594]
[1771728095425,0.99205915,84.925,84.861,3.88186594]
[1771728095630,10.90768978,84.948,84.861,3.88186594]
[1771728095631,0.99205915,84.923,84.861,3.88186594]
[1771728095819,0.99205915,84.921,84.861,3.88186594]
[1771728096026,0.99205915,84.919,84.861,3.88186594]
[1771728096220,0.99205915,84.917,84.861,3.88186594]
[1771728096733,0.99205915,84.915,84.861,3.88186594]
[1771728096929,0.9998905,84.913,84.861,3.88186594]
[1771728098228,0.99771245,84.936,84.862,3.65936375]
[1771728098429,9.17595112,84.935,84.862,3.65936375]
[1771728098629,9.17595112,84.934,84.862,3.65936375]
[1771728098934,10.1615318,84.933,84.875,3.65936375]
[1771728099231,0.98558068,84.931,84.875,3.65936375]
[1771728099432,0.98558068,84.929,84.875,3.65936375]
[1771728099634,0.98558068,84.927,84.875,3.65936375]
[1771728100724,0.98558068,84.923,84.863,3.65936375]
[1771728100930,9.17036711,84.922,84.863,3.65936375]
[1771728101127,0.98558068,84.923,84.863,3.65936375]
[1771728101720,0.98558068,84.923,84.865,3.65936375]
[1771728102334,0.98458547,84.946,84.865,3.65936375]
[1771728102536,0.98458547,84.944,84.865,3.65936375]
[1771728102730,11.58428547,84.942,84.877,10.6077]
[1771728102932,1.00896418,84.94,84.878,3.65936375]
[1771728103235,1.00896418,84.938,84.878,3.65936375]
[1771728103439,1.00896418,84.936,84.878,3.65936375]
[1771728103629,9.16898795,84.935,84.878,3.65936375]
[1771728103823,9.16898795,84.934,84.878,3.65936375]
[1771728104033,9.16898795,84.933,84.878,3.65936375]
[1771728104232,9.16898795,84.932,84.878,3.65936375]
[1771728104435,9.16898795,84.931,84.878,3.65936375]
[1771728104739,9.16898795,84.93,84.878,3.65936375]
[1771728104934,1.00798332,84.934,84.878,3.65936375]
[1771728105129,9.16559101,84.933,84.878,3.65936375]
[1771728105334,9.16559101,84.932,84.878,3.65936375]
[1771728105530,1.00798332,84.934,84.878,3.65936375]
[1771728105737,10.17227804,84.933,84.878,3.65936375]
[1771728105934,9.16429472,84.932,84.878,3.65936375]
[1771728106236,9.16429472,84.932,84.828,35.38]
[1771728106237,1.00798332,84.933,84.88,3.65936375]
[1771728108641,1.03116845,84.931,84.88,3.65936375]
[1771728109738,11.62577503,84.925,84.88,3.65936375]
[1771728110134,1.02397503,84.925,84.88,3.65936375]
[1771728110341,1.02397503,84.935,84.88,3.65936375]
[1771728110734,1.02397503,84.935,84.88,14.26676375]
[1771728110938,1.02397503,84.935,84.881,3.65936375]
[1771728111842,1.03281196,84.933,84.881,3.65936375]
[1771728115338,701.00500644,84.984,84.881,3.65936375]
[1771728115339,1.05233156,84.93,84.881,3.65936375]
[1771728116646,1.05233156,84.926,84.881,3.65936375]
[1771728117641,10.6019,84.925,84.881,3.65936375]
[1771728117849,11.65616841,84.925,84.881,3.65936375]
[1771728118245,1.05426841,84.925,84.881,3.65936375]
[1771728119248,1.0526251,84.923,84.881,3.65936375]
[1771728120143,1.0526251,84.923,84.856,10.6103]
[1771728120342,1.0526251,84.923,84.857,3.65936375]
[1771728120751,1.0526251,84.909,84.857,3.65936375]
[1771728121239,1.04680794,84.938,84.857,3.65936375]
[1771728121444,1.04680794,84.938,84.828,35.38]
[1771728121445,1.04680794,84.921,84.859,3.65936375]
[1771728122351,1.04680794,84.919,84.859,3.65936375]
[1771728122953,10.6013,84.93,84.863,3.65936375]
[1771728123153,1.03726938,84.928,84.863,3.65936375]
[1771728123349,1.03726938,84.926,84.863,3.65936375]
[1771728123554,10.88663927,84.939,84.863,3.65936375]
[1771728123555,1.03726938,84.92,84.863,3.65936375]
[1771728123854,1.03726938,84.918,84.863,3.65936375]
[1771728124652,1.03726938,84.911,84.863,3.65936375]
[1771728125860,0.98727754,84.909,84.863,3.65936375]
[1771728126456,0.98727754,84.92,84.863,3.65936375]
[1771728127266,1.0200255,84.915,84.863,3.65936375]
[1771728128658,10.6032,84.914,84.863,3.65936375]
[1771728128859,1.01258207,84.938,84.867,3.67918128]
[1771728129058,10.10020908,84.937,84.867,3.67918128]
[1771728129259,10.10020908,84.936,84.867,3.67918128]
[1771728129454,1.01258207,84.936,84.867,3.67918128]
[1771728129664,1.01258207,84.936,84.87,3.67918128]
[1771728130263,1.01258207,84.958,84.876,3.67918128]
[1771728130464,14.57825567,84.971,84.876,3.67918128]
[1771728130465,1.01258207,84.956,84.876,3.67918128]
[1771728131057,10.5981,84.955,84.876,3.67918128]
[1771728131366,0.90020298,84.954,84.896,3.67918128]
[1771728132666,0.90376103,84.947,84.896,3.67918128]
[1771728133862,0.90376103,84.947,84.897,3.77209189]
[1771728134266,0.87042827,84.958,84.9,3.77209189]
[1771728135274,0.87472392,84.956,84.9,3.77209189]
[1771728136770,0.87472392,84.953,84.9,3.77209189]
[1771728137170,0.86819373,84.951,84.9,3.77209189]
[1771728137366,0.86819373,84.946,84.9,3.77209189]
[1771728142782,0.86603233,84.943,84.9,3.77209189]
[1771728144778,227.60914187,84.972,84.873,10.6082]
[1771728144779,0.86567767,84.93,84.874,3.77209189]
[1771728146582,0.86589648,84.943,84.88,3.77209189]
[1771728147078,0.88879131,84.941,84.88,3.77209189]
[1771728147274,227.60914187,84.972,84.88,3.77209189]
[1771728147275,0.88879131,84.939,84.88,3.77209189]
[1771728148778,0.88879131,84.935,84.88,3.77209189]
[1771728149176,10.9077557,84.966,84.88,3.77209189]
[1771728149177,11.4892907,84.932,84.88,3.77209189]
[1771728150180,0.8882907,84.932,84.88,3.77209189]
[1771728150376,10.5996,84.943,84.88,3.77209189]
[1771728150683,11.4878907,84.943,84.88,3.77209189]
[1771728150881,0.8882907,84.942,84.88,3.77209189]
[1771728151076,10.6,84.94,84.88,3.77209189]
[1771728151286,11.47238775,84.94,84.88,3.77209189]
[1771728152785,0.87238775,84.936,84.88,3.77209189]
[1771728154181,0.87238775,84.936,84.882,3.77209189]
[1771728155187,10.6006,84.935,84.885,3.77209189]
[1771728155888,0.87238775,84.936,84.885,3.77209189]
[1771728157092,10.5993,84.945,84.886,3.77209189]
[1771728157389,0.88503641,84.944,84.886,3.77209189]
[1771728158187,10.598,84.955,84.891,3.63844555]
[1771728158388,11.47735355,84.955,84.891,3.63844555]
[1771728158694,0.87935355,84.954,84.891,3.63844555]
[1771728159186,0.88719978,84.952,84.891,3.63844555]
[1771728160785,0.88719978,84.946,84.891,3.63844555]
[1771728162194,0.88719978,84.946,84.893,3.63844555]
[1771728162993,0.88719978,84.946,84.895,3.63844555]
[1771728163799,10.5978,84.957,84.897,3.63844555]
[1771728164498,10.5978,84.957,84.903,3.63844555]
[1771728166301,0.83878954,84.958,84.908,3.63844555]
[1771728171300,0.90166076,84.956,84.908,3.63844555]
[1771728174293,227.60914187,84.972,84.91,3.63844555]
[1771728175104,0.95474024,84.971,84.91,3.63844555]
[1771728175705,0.95474024,84.971,84.912,3.63844555]
[1771728176803,0.95474024,84.966,84.912,3.63844555]
[1771728178301,0.95474024,84.966,84.829,36.49061733]
[1771728178302,0.95474024,84.966,84.916,3.63844555]
[1771728179806,0.95474024,84.966,84.918,3.63844555]
[1771728187214,0.66539511,84.961,84.918,3.63844555]
[1771728190515,228.27027082,84.972,84.918,3.63844555]
[1771728191015,0.66112895,84.991,84.918,3.63844555]
[1771728191223,0.66105613,84.98,84.918,3.63844555]
[1771728191414,0.66105613,84.978,84.918,3.63844555]
[1771728191614,0.66105613,84.976,84.918,3.63844555]
[1771728192719,0.66163967,84.967,84.918,3.63844555]
[1771728194214,0.54891688,84.978,84.922,3.93929675]
[1771728195121,0.37215198,84.976,84.922,3.93929675]
[1771728196820,0.37215198,84.973,84.922,3.93929675]
[1771728204331,0.57557276,84.971,84.922,3.93929675]
[1771728205628,0.58050372,84.969,84.922,3.93929675]
[1771728205829,9.65379591,84.968,84.922,3.93929675]
[1771728206131,9.07470638,84.967,84.922,3.93929675]
[1771728206329,0.58050372,84.968,84.922,3.93929675]
[1771728206824,9.07465289,84.967,84.922,3.93929675]
[1771728207032,0.58050372,84.968,84.922,3.93929675]
[1771728207329,9.67589451,84.967,84.922,3.93929675]
[1771728207531,0.59998785,84.967,84.922,3.93929675]
[1771728208228,9.07765162,84.966,84.922,3.93929675]
[1771728208426,0.59998785,84.967,84.922,3.93929675]
[1771728208631,9.07774468,84.966,84.922,3.93929675]
[1771728208832,0.59998785,84.965,84.922,3.93929675]
[1771728213335,9.08017501,84.964,84.922,3.93929675]
[1771728213540,0.59998785,84.965,84.922,3.93929675]
[1771728214134,9.08048119,84.964,84.922,3.93929675]
[1771728214433,0.59998785,84.965,84.922,3.93929675]
[1771728214736,9.08063705,84.964,84.922,3.93929675]
[1771728215042,0.5028849,84.975,84.922,3.93929675]
[1771728215236,0.5028849,84.973,84.922,3.93929675]
[1771728215436,0.5028849,84.971,84.922,3.93929675]
[1771728215642,9.08088185,84.97,84.922,3.93929675]
[1771728215940,9.08088185,84.969,84.922,3.93929675]
[1771728216137,9.08088185,84.968,84.922,3.93929675]
[1771728216337,9.08088185,84.967,84.922,3.93929675]
[1771728216538,9.08088185,84.966,84.922,3.93929675]
[1771728216732,9.08088185,84.965,84.922,3.93929675]
[1771728216931,0.5028849,84.971,84.922,3.93929675]
[1771728216932,9.08088185,84.964,84.922,3.93929675]
[1771728217240,0.5028849,84.971,84.922,3.93929675]
[1771728217546,0.4867469,84.969,84.922,3.93929675]
[1771728217840,9.08180851,84.968,84.922,3.93929675]
[1771728218040,9.08180851,84.967,84.922,3.93929675]
[1771728218241,9.08180851,84.966,84.922,3.93929675]
[1771728218438,9.08180851,84.965,84.922,3.93929675]
[1771728218638,0.4867469,84.969,84.922,3.93929675]
[1771728218941,9.0813341,84.968,84.922,3.93929675]
[1771728219241,9.0813341,84.967,84.922,3.93929675]
[1771728219440,9.0813341,84.966,84.922,3.93929675]
[1771728219641,9.0813341,84.965,84.922,3.93929675]
[1771728219840,9.0813341,84.964,84.922,3.93929675]
[1771728220042,0.4867469,84.969,84.922,3.93929675]
[1771728220343,9.08193294,84.968,84.922,3.93929675]
[1771728220638,9.08193294,84.967,84.922,3.93929675]
[1771728220834,9.08193294,84.966,84.922,3.93929675]
[1771728221038,9.08193294,84.965,84.922,3.93929675]
[1771728221235,9.08193294,84.964,84.922,3.93929675]
[1771728221438,9.08193294,84.963,84.922,3.93929675]
[1771728221638,0.4867469,84.969,84.922,3.93929675]
[1771728221839,9.08207907,84.968,84.922,3.93929675]
[1771728222035,9.08207907,84.967,84.922,3.93929675]
[1771728222348,9.08207907,84.966,84.922,3.93929675]
[1771728222549,9.08207907,84.965,84.922,3.93929675]
[1771728222847,9.08207907,84.964,84.922,3.93929675]
[1771728223047,0.4867469,84.969,84.922,3.93929675]
[1771728224945,0.48023983,84.987,84.927,3.8974534]
[1771728225139,0.48023983,84.985,84.927,3.8974534]
[1771728225339,9.08171848,84.984,84.927,3.8974534]
[1771728225543,0.48023983,84.985,84.927,3.8974534]
[1771728225738,9.08121933,84.984,84.927,3.8974534]
[1771728225945,0.48023983,84.985,84.927,3.8974534]
[1771728226145,9.08121933,84.984,84.927,3.8974534]
[1771728226341,0.48023983,85.002,84.929,3.8974534]
[1771728226649,0.48023983,85.0,84.929,3.8974534]
[1771728226851,0.48023983,84.998,84.929,3.8974534]
[1771728227052,0.48330871,84.996,84.929,3.8974534]
[1771728227252,9.56229253,84.995,84.929,3.8974534]
[1771728227452,9.07898382,84.994,84.929,3.8974534]
[1771728227654,9.07898382,84.993,84.936,10.6004]
[1771728227847,0.48330871,84.995,84.937,3.8974534]
[1771728228649,0.48330871,84.995,84.939,3.8974534]
[1771728228948,9.07404436,84.994,84.939,3.8974534]
[1771728229155,0.48330871,84.995,84.939,3.8974534]
[1771728229355,0.46840507,84.993,84.939,3.8974534]
[1771728229550,9.0740379,84.992,84.939,3.8974534]
[1771728229748,0.46840507,84.993,84.939,3.8974534]
[1771728229945,9.07228778,84.992,84.939,3.8974534]
[1771728230150,0.46840507,84.993,84.939,3.8974534]
[1771728235556,0.4974224,84.991,84.939,3.8974534]
[1771728235751,0.4974224,84.989,84.939,3.8974534]
[1771728240858,0.49395356,84.985,84.939,3.8974534]
[1771728241056,0.50969763,84.983,84.939,3.8974534]
[1771728241259,0.50969763,84.981,84.939,3.8974534]
[1771728251565,9.06717586,84.98,84.939,3.8974534]
[1771728251766,0.50969763,84.981,84.939,3.8974534]
[1771728251967,9.06734246,84.98,84.939,3.8974534]
[1771728252162,0.50969763,84.981,84.939,3.8974534]
[1771728252364,0.53362717,84.979,84.939,3.8974534]
[1771728252871,0.53362717,84.99,84.939,3.8974534]
[1771728253063,9.58964461,84.989,84.939,3.8974534]
[1771728253263,0.52169244,84.987,84.939,3.8974534]
[1771728253464,9.06795217,84.986,84.939,3.8974534]
[1771728253764,0.52169244,84.987,84.939,3.8974534]
[1771728253963,9.06825582,84.986,84.939,3.8974534]
[1771728254163,0.52169244,84.987,84.939,3.8974534]
[1771728254363,10.5927,84.998,84.939,3.8974534]
[1771728254364,0.52169244,84.985,84.939,3.8974534]
[1771728259465,0.54173945,84.983,84.939,3.8974534]
[1771728265370,9.07519631,84.982,84.939,3.8974534]
[1771728265673,0.54173945,84.983,84.939,3.8974534]
[1771728265874,9.07539251,84.982,84.939,3.8974534]
[1771728266069,0.54173945,84.983,84.939,3.8974534]
[1771728266270,9.07539574,84.982,84.939,3.8974534]
[1771728266471,0.54173945,84.983,84.939,3.8974534]
[1771728266672,9.07697138,84.982,84.939,3.8974534]
[1771728266973,0.54173945,84.983,84.939,3.8974534]
[1771728267175,9.07697242,84.982,84.939,3.8974534]
[1771728267372,9.07864273,84.981,84.939,3.8974534]
[1771728267676,0.54173945,84.983,84.939,3.8974534]
[1771728267976,9.07880858,84.982,84.939,3.8974534]
[1771728268177,9.07880858,84.981,84.939,3.8974534]
[1771728268379,0.54173945,84.983,84.939,3.8974534]
[1771728268575,9.0767844,84.982,84.939,3.8974534]
[1771728268776,9.0767844,84.981,84.939,3.8974534]
[1771728269079,0.54173945,84.983,84.939,3.8974534]
[1771728269275,9.07678916,84.982,84.939,3.8974534]
[1771728269478,9.07678916,84.981,84.939,3.8974534]
[1771728269780,9.07678916,84.98,84.939,3.8974534]
[1771728269968,0.54173945,84.983,84.939,3.8974534]
[1771728270176,9.07781023,84.982,84.939,3.8974534]
[1771728270373,9.07781023,84.981,84.939,3.8974534]
[1771728270573,0.54173945,84.983,84.939,3.8974534]
[1771728270774,9.07823987,84.982,84.939,3.8974534]
[1771728271075,9.07823987,84.981,84.939,3.8974534]
[1771728271275,9.07808025,84.98,84.939,3.8974534]
[1771728271572,0.54173945,84.983,84.939,3.8974534]
[1771728271769,9.0782575,84.982,84.939,3.8974534]
[1771728271973,9.0782575,84.981,84.939,3.8974534]
[1771728272277,0.54173945,84.983,84.939,3.8974534]
[1771728272576,9.07836936,84.982,84.939,3.8974534]
[1771728272777,0.54173945,84.983,84.939,3.8974534]
[1771728272778,9.07836936,84.981,84.939,3.8974534]
[1771728273078,9.07836936,84.98,84.939,3.8974534]
[1771728273373,0.54173945,84.983,84.939,3.8974534]
[1771728273574,9.07902634,84.982,84.939,3.8974534]
[1771728273777,9.07902634,84.981,84.939,3.8974534]
[1771728274079,9.07902634,84.98,84.939,3.8974534]
[1771728274282,0.54173945,84.983,84.939,3.8974534]
[1771728274482,9.07916206,84.982,84.939,3.8974534]
[1771728274779,9.07916206,84.981,84.939,3.8974534]
[1771728274980,9.07916206,84.98,84.939,3.8974534]
[1771728275180,0.54173945,84.983,84.939,3.8974534]
[1771728275388,9.07916206,84.982,84.939,3.8974534]
[1771728275582,0.54173945,84.983,84.939,3.8974534]
[1771728276876,0.54662262,84.981,84.939,3.8974534]
[1771728277075,9.08033956,84.98,84.939,3.8974534]
[1771728277275,0.54662262,84.981,84.939,3.8974534]
[1771728277276,9.08033956,84.979,84.939,3.8974534]
[1771728277482,0.54662262,84.981,84.939,3.8974534]
[1771728277683,9.08127222,84.98,84.939,3.8974534]
[1771728277981,9.08127222,84.979,84.939,3.8974534]
[1771728278181,9.08127222,84.978,84.939,3.8974534]
[1771728278381,0.54662262,84.981,84.939,3.8974534]
[1771728278583,9.0791602,84.98,84.939,3.8974534]
[1771728278782,9.0791602,84.979,84.939,3.8974534]
[1771728278985,9.0791602,84.978,84.939,3.8974534]
[1771728279184,0.54662262,84.981,84.939,3.8974534]
[1771728279388,9.07912982,84.98,84.939,3.8974534]
[1771728279585,9.07912982,84.979,84.939,3.8974534]
[1771728279785,9.07912982,84.978,84.939,3.8974534]
[1771728279982,0.54662262,84.981,84.939,3.8974534]
[1771728280192,9.07894934,84.98,84.939,3.8974534]
[1771728280384,9.07894934,84.979,84.939,3.8974534]
[1771728280583,9.07894934,84.978,84.939,3.8974534]
[1771728280784,0.54662262,84.981,84.939,3.8974534]
[1771728280986,9.07898211,84.98,84.939,3.8974534]
[1771728281186,9.07898211,84.979,84.939,3.8974534]
[1771728281385,9.07898211,84.978,84.939,3.8974534]
[1771728281585,0.55691596,84.98,84.939,3.8974534]
[1771728281785,9.07905755,84.979,84.939,3.8974534]
[1771728282085,9.07905755,84.978,84.939,3.8974534]
[1771728282280,0.55691596,84.98,84.939,3.8974534]
[1771728282486,9.07962278,84.979,84.939,3.8974534]
[1771728282786,0.55691596,84.98,84.939,3.8974534]
[1771728282981,0.56000208,84.978,84.939,3.8974534]
[1771728283183,0.56000208,84.989,84.939,3.8974534]
[1771728283385,9.64051676,84.988,84.939,3.8974534]
[1771728283588,9.08051468,84.987,84.939,3.8974534]
[1771728283786,9.08051468,84.986,84.939,3.8974534]
[1771728283984,0.56000208,84.987,84.939,3.8974534]
[1771728284289,10.5937,84.99,84.939,3.8974534]
[1771728284290,9.64051318,84.986,84.939,3.8974534]
[1771728284484,0.56000208,84.986,84.939,3.8974534]
[1771728284890,0.56000208,84.984,84.939,3.8974534]
[1771728285585,9.08082341,84.983,84.939,3.8974534]
[1771728285789,9.08082341,84.982,84.939,3.8974534]
[1771728285990,9.08082341,84.981,84.939,3.8974534]
[1771728286186,0.56000208,84.984,84.939,3.8974534]
[1771728286386,9.08177204,84.983,84.939,3.8974534]
[1771728286592,9.08177204,84.982,84.939,3.8974534]
[1771728286886,9.08177204,84.981,84.939,3.8974534]
[1771728287188,0.56000208,84.984,84.939,3.8974534]
[1771728287388,9.09644277,84.983,84.939,3.8974534]
[1771728287583,9.09644277,84.982,84.939,3.8974534]
[1771728287778,9.09644277,84.981,84.939,3.8974534]
[1771728287983,9.09644277,84.98,84.939,3.8974534]
[1771728288180,0.56000208,84.984,84.939,3.8974534]
[1771728288385,9.09527525,84.983,84.939,3.8974534]
[1771728288690,9.09527525,84.982,84.939,3.8974534]
[1771728288892,9.09527525,84.981,84.939,3.8974534]
[1771728289091,0.56000208,84.984,84.939,3.8974534]
[1771728289092,9.09527525,84.98,84.939,3.8974534]
[1771728289288,0.56000208,84.984,84.939,3.8974534]
[1771728289493,9.63769968,84.983,84.939,3.8974534]
[1771728289792,9.09542603,84.982,84.939,3.8974534]
[1771728289995,9.09542603,84.981,84.939,3.8974534]
[1771728290294,9.09542603,84.98,84.939,3.8974534]
[1771728290588,0.54227365,84.983,84.939,3.8974534]
[1771728290793,9.09558297,84.982,84.939,3.8974534]
[1771728290992,0.53781877,84.999,84.941,3.9102164]
[1771728291188,9.09668071,84.998,84.941,3.9102164]
[1771728291393,9.09668071,84.997,84.941,3.9102164]
[1771728291587,0.53781877,85.007,84.941,3.9102164]
[1771728291784,0.53781877,85.005,84.941,3.9102164]
[1771728291993,0.53781877,85.003,84.941,3.9102164]
[1771728292295,10.591,85.012,84.941,3.9102164]
[1771728292296,0.53781877,85.001,84.941,3.9102164]
[1771728292598,10.591,85.012,84.941,3.9102164]
[1771728292599,9.63201339,85.0,84.941,3.9102164]
[1771728292791,9.63201339,84.999,84.946,3.9102164]
[1771728292987,9.09419462,84.998,84.946,3.9102164]
[1771728293187,9.09419462,84.997,84.946,3.9102164]
[1771728293386,9.09419462,84.996,84.946,3.9102164]
[1771728293597,0.54251421,84.994,84.946,3.9102164]
[1771728293896,9.09419462,84.993,84.946,3.9102164]
[1771728294090,0.54251421,84.994,84.946,3.9102164]
[1771728294291,9.08786596,84.993,84.946,3.9102164]
[1771728294485,0.54251421,84.994,84.946,3.9102164]
[1771728294691,9.08736112,84.993,84.946,3.9102164]
[1771728294890,0.56543685,84.991,84.946,3.9102164]
[1771728295091,0.56543685,84.989,84.946,3.9102164]
[1771728295291,0.56543685,84.987,84.946,3.9102164]
[1771728296196,0.56543685,84.996,84.946,3.9102164]
[1771728296494,9.65378683,84.995,84.946,3.9102164]
[1771728296698,9.65378683,84.994,84.946,3.9102164]
[1771728296889,9.65378683,84.993,84.946,3.9102164]
[1771728297088,9.08834998,84.992,84.946,3.9102164]
[1771728297293,9.08848204,84.991,84.946,3.9102164]
[1771728297489,9.08848204,84.99,84.946,3.9102164]
[1771728297690,9.08848204,84.989,84.946,3.9102164]
[1771728297905,9.08848204,84.988,84.946,3.9102164]
[1771728298093,0.56543685,84.993,84.946,3.9102164]
[1771728298399,9.08864758,84.992,84.946,3.9102164]
[1771728298599,9.08864758,84.991,84.946,3.9102164]
[1771728298898,9.08864758,84.99,84.946,3.9102164]
[1771728299100,9.08864758,84.989,84.946,3.9102164]
[1771728299299,9.08864758,84.988,84.946,3.9102164]
[1771728299500,0.56543685,84.993,84.946,3.9102164]
[1771728299800,9.08473471,84.992,84.946,3.9102164]
[1771728299998,9.08473471,84.991,84.946,3.9102164]
[1771728300197,9.08473471,84.99,84.946,3.9102164]
[1771728300397,9.08473471,84.989,84.946,3.9102164]
[1771728300593,9.08473471,84.988,84.946,3.9102164]
[1771728300901,9.08810185,84.987,84.946,3.9102164]
[1771728301100,9.08810185,84.986,84.946,3.9102164]
[1771728301292,0.59149088,84.991,84.946,3.9102164]
[1771728301494,0.59149088,84.989,84.946,3.9102164]
[1771728301695,9.6794023,84.988,84.946,3.9102164]
[1771728301890,0.59149088,84.986,84.946,3.9102164]
[1771728302094,9.6794023,84.985,84.946,3.9102164]
[1771728302306,9.08791142,84.984,84.946,3.9102164]
[1771728302596,0.59149088,84.985,84.946,3.9102164]
[1771728302804,9.08763738,84.984,84.946,3.9102164]
[1771728302995,0.59149088,84.985,84.946,3.9102164]
[1771728303197,9.67850828,84.984,84.946,3.9102164]
[1771728303497,9.08696883,84.983,84.946,3.9102164]
[1771728303697,9.08696883,84.982,84.946,3.9102164]
[1771728303996,9.08696883,84.981,84.946,3.9102164]
[1771728304297,0.59087195,84.984,84.946,3.9102164]
[1771728304496,9.08695288,84.983,84.946,3.9102164]
[1771728304694,0.59087195,84.981,84.934,3.9102164]
[1771728305001,0.59087195,84.979,84.924,3.9102164]
[1771728305201,0.57357975,84.977,84.924,3.9102164]
[1771728305397,0.57357975,84.975,84.924,3.9102164]
[1771728305601,0.57357975,84.973,84.924,3.9102164]
[1771728305802,0.57357975,84.971,84.924,3.9102164]
[1771728306001,0.57357975,84.969,84.924,3.9102164]
[1771728306204,0.57357975,84.967,84.924,3.9102164]
[1771728306403,0.57357975,84.965,84.924,3.9102164]
[1771728306703,0.57357975,84.978,84.926,3.9102164]
[1771728307694,0.57357975,84.978,84.929,3.9102164]
[1771728308804,0.69252646,84.976,84.914,3.93493144]
[1771728309009,0.55102907,84.974,84.914,3.93493144]
[1771728309207,0.55102907,84.972,84.914,3.93493144]
[1771728309509,0.55102907,84.97,84.914,3.93493144]
[1771728314410,0.55102907,84.97,84.917,3.72793186]
[1771728314607,0.54650282,84.968,84.917,3.72793186]
[1771728316109,0.50519962,84.966,84.917,3.72793186]
[1771728318512,0.43828171,84.977,84.917,3.72793186]
[1771728319709,0.43828171,84.977,84.919,3.77776609]
[1771728320808,0.44683437,84.974,84.919,3.77776609]
[1771728330621,0.45531368,84.97,84.919,3.77776609]
[1771728332926,0.47883628,84.968,84.919,3.77776609]
[1771728333226,0.47883628,84.966,84.919,3.77776609]
[1771728335736,10.5955,84.976,84.919,3.77776609]
[1771728335939,9.05430853,84.975,84.919,3.77776609]
[1771728336134,9.05430853,84.974,84.919,3.77776609]
[1771728336332,9.05430853,84.973,84.919,3.77776609]
[1771728336539,9.05430853,84.972,84.919,3.77776609]
[1771728336729,9.05430853,84.971,84.919,3.77776609]
[1771728336928,9.05430853,84.97,84.919,3.77776609]
[1771728337135,9.05430853,84.969,84.919,3.77776609]
[1771728337338,10.5957,84.974,84.919,3.77776609]
[1771728337540,9.05769143,84.973,84.919,3.77776609]
[1771728337732,9.05769143,84.972,84.919,3.77776609]
[1771728337933,9.05769143,84.971,84.919,3.77776609]
[1771728338134,9.05769143,84.97,84.919,3.77776609]
[1771728338334,10.5957,84.974,84.919,3.77776609]
[1771728338335,9.05769143,84.969,84.919,3.77776609]
[1771728338538,0.4977835,84.978,84.919,3.77776609]
[1771728339537,0.41159934,84.976,84.919,3.77776609]
[1771728340938,0.41159934,84.976,84.924,3.81307545]
[1771728341138,0.40483527,84.993,84.924,3.81307545]
[1771728341439,0.40483527,84.991,84.924,3.81307545]
[1771728341941,230.12418565,84.994,84.937,3.81307545]
[1771728342438,0.40483527,84.993,84.937,3.81307545]
[1771728343736,0.40174899,84.989,84.937,3.81307545]
[1771728343940,0.40174899,84.987,84.937,3.81307545]
[1771728344142,0.40174899,84.985,84.937,3.81307545]
[1771728344445,0.40174899,84.983,84.937,3.81307545]
[1771728345245,10.594,84.988,84.937,3.81307545]
[1771728345246,0.42104496,84.981,84.937,3.81307545]
[1771728345746,0.42104496,84.979,84.937,3.81307545]
[1771728350946,10.594,84.988,84.937,3.81307545]
[1771728351245,9.08003855,84.987,84.937,3.81307545]
[1771728351450,9.08003855,84.986,84.937,3.81307545]
[1771728351651,9.08003855,84.985,84.937,3.81307545]
[1771728351950,9.08003855,84.984,84.937,3.81307545]
[1771728352152,9.08003855,84.983,84.937,3.81307545]
[1771728352451,230.12418565,84.994,84.937,3.81307545]
[1771728352651,9.08001391,84.993,84.937,3.81307545]
[1771728352949,0.3742526,84.991,84.937,3.81307545]
[1771728353151,9.49090895,84.99,84.937,3.81307545]
[1771728353353,9.08001391,84.989,84.937,3.81307545]
[1771728353551,9.08001391,84.988,84.937,3.81307545]
[1771728353748,9.08001391,84.987,84.937,3.81307545]
[1771728353950,9.08001391,84.986,84.937,3.81307545]
[1771728354251,0.41089504,84.99,84.937,3.81307545]
[1771728354451,9.07943405,84.989,84.937,3.81307545]
[1771728354749,0.41089504,84.99,84.937,3.81307545]
[1771728354750,9.07943405,84.988,84.937,3.81307545]